[Event "Titled Tuesday Blitz August 09 Early 2022"]
[White "Ismayil, Malak"]
[Black "Martin Alvarez, Inigo"]
[WhiteFideId "13412604"]
[BlackFideId "2259354"]
[WhiteElo "1879"]
[BlackElo "2276"]
[Result "1/2-1/2"]
[Round "02"]
[TimeControl "180+1"]
[Date "2022.08.09"]
[WhiteClock "0:00:08"]
[BlackClock "0:00:08"]

1. e4 {[%clk 0:03:00]}  c5 {[%clk 0:02:56]} 2. Nf3 {[%clk 0:02:56]}  Nc6 {[%clk 0:02:54]} 3. Bb5 {[%clk 0:02:54]}  e6 {[%clk 0:02:48]} 4. O-O {[%clk 0:02:53]}  Nge7 {[%clk 0:02:48]} 5. c3 {[%clk 0:02:48]}  a6 {[%clk 0:02:45]} 6. Bxc6 {[%clk 0:02:48]}  Nxc6 {[%clk 0:02:43]} 7. d4 {[%clk 0:02:48]}  d5 {[%clk 0:02:42]} 8. exd5 {[%clk 0:02:46]}  Qxd5 {[%clk 0:02:40]} 9. Be3 {[%clk 0:02:44]}  cxd4 {[%clk 0:02:33]} 10. Nxd4 {[%clk 0:02:45]}  Be7 {[%clk 0:02:27]} 11. Nd2 {[%clk 0:02:43]}  O-O {[%clk 0:02:16]} 12. Nxc6 {[%clk 0:02:39]}  Qxc6 {[%clk 0:02:15]} 13. Nb3 {[%clk 0:02:36]}  b5 {[%clk 0:02:11]} 14. f3 {[%clk 0:02:35]}  Rd8 {[%clk 0:01:58]} 15. Qe1 {[%clk 0:02:35]}  Qc4 {[%clk 0:01:49]} 16. Qf2 {[%clk 0:02:23]}  e5 {[%clk 0:01:46]} 17. Rfd1 {[%clk 0:02:17]}  Bf5 {[%clk 0:01:43]} 18. Nd2 {[%clk 0:02:06]}  Qc6 {[%clk 0:01:32]} 19. Nf1 {[%clk 0:02:03]}  Be6 {[%clk 0:01:20]} 20. a3 {[%clk 0:01:50]}  Bb3 {[%clk 0:01:19]} 21. Rd2 {[%clk 0:01:50]}  Rxd2 {[%clk 0:01:18]} 22. Nxd2 {[%clk 0:01:51]}  Be6 {[%clk 0:01:14]} 23. Ne4 {[%clk 0:01:47]}  Rd8 {[%clk 0:01:08]} 24. Bc5 {[%clk 0:01:24]}  Bxc5 {[%clk 0:00:58]} 25. Nxc5 {[%clk 0:01:25]}  Bf5 {[%clk 0:00:52]} 26. Re1 {[%clk 0:01:24]}  f6 {[%clk 0:00:51]} 27. Qe3 {[%clk 0:01:19]}  a5 {[%clk 0:00:48]} 28. b4 {[%clk 0:01:13]}  a4 {[%clk 0:00:45]} 29. h4 {[%clk 0:01:08]}  Bg6 {[%clk 0:00:44]} 30. f4 {[%clk 0:01:03]}  exf4 {[%clk 0:00:41]} 31. Qxf4 {[%clk 0:01:02]}  Bf7 {[%clk 0:00:40]} 32. Kh2 {[%clk 0:00:58]}  Bc4 {[%clk 0:00:40]} 33. Re7 {[%clk 0:00:56]}  Qd6 {[%clk 0:00:39]} 34. Qxd6 {[%clk 0:00:56]}  Rxd6 {[%clk 0:00:39]} 35. Rc7 {[%clk 0:00:47]}  Rd2 {[%clk 0:00:38]} 36. Nxa4 {[%clk 0:00:44]}  Bd5 {[%clk 0:00:37]} 37. Nc5 {[%clk 0:00:42]}  Rxg2+ {[%clk 0:00:35]} 38. Kh3 {[%clk 0:00:43]}  Rc2 {[%clk 0:00:34]} 39. Nd3 {[%clk 0:00:36]}  Bc4 {[%clk 0:00:32]} 40. Nf4 {[%clk 0:00:23]}  Rxc3+ {[%clk 0:00:32]} 41. Kh2 {[%clk 0:00:20]}  Rxa3 {[%clk 0:00:32]} 42. Nh5 {[%clk 0:00:19]}  Ra2+ {[%clk 0:00:28]} 43. Kg1 {[%clk 0:00:18]}  Ra1+ {[%clk 0:00:27]} 44. Kh2 {[%clk 0:00:19]}  Rb1 {[%clk 0:00:24]} 45. Rxg7+ {[%clk 0:00:17]}  Kf8 {[%clk 0:00:24]} 46. Rc7 {[%clk 0:00:16]}  Rxb4 {[%clk 0:00:21]} 47. Nxf6 {[%clk 0:00:16]}  Rb2+ {[%clk 0:00:20]} 48. Kg3 {[%clk 0:00:16]}  Rb3+ {[%clk 0:00:20]} 49. Kf4 {[%clk 0:00:17]}  Rb1 {[%clk 0:00:19]} 50. Nxh7+ {[%clk 0:00:16]}  Ke8 {[%clk 0:00:18]} 51. Nf6+ {[%clk 0:00:17]}  Kd8 {[%clk 0:00:18]} 52. Rd7+ {[%clk 0:00:18]}  Kc8 {[%clk 0:00:18]} 53. Ra7 {[%clk 0:00:18]}  Rf1+ {[%clk 0:00:17]} 54. Kg5 {[%clk 0:00:18]}  b4 {[%clk 0:00:17]} 55. Ra4 {[%clk 0:00:17]}  Rb1 {[%clk 0:00:15]} 56. Ne4 {[%clk 0:00:17]}  Bd3 {[%clk 0:00:15]} 57. Nc5 {[%clk 0:00:16]}  Bc2 {[%clk 0:00:14]} 58. Ra8+ {[%clk 0:00:15]}  Kc7 {[%clk 0:00:13]} 59. h5 {[%clk 0:00:15]}  b3 {[%clk 0:00:13]} 60. Nxb3 {[%clk 0:00:13]}  Bxb3 {[%clk 0:00:12]} 61. h6 {[%clk 0:00:13]}  Rg1+ {[%clk 0:00:11]} 62. Kf6 {[%clk 0:00:13]}  Rh1 {[%clk 0:00:11]} 63. Kg7 {[%clk 0:00:13]}  Bc2 {[%clk 0:00:11]} 64. Ra7+ {[%clk 0:00:12]}  Kd6 {[%clk 0:00:11]} 65. Ra6+ {[%clk 0:00:12]}  Kd5 {[%clk 0:00:11]} 66. Ra5+ {[%clk 0:00:12]}  Kd4 {[%clk 0:00:10]} 67. Rg5 {[%clk 0:00:12]}  Be4 {[%clk 0:00:09]} 68. Rg4 {[%clk 0:00:13]}  Kd3 {[%clk 0:00:09]} 69. Rg3+ {[%clk 0:00:13]}  Kd4 {[%clk 0:00:09]} 70. Rg5 {[%clk 0:00:12]}  Kd3 {[%clk 0:00:09]} 71. Ra5 {[%clk 0:00:12]}  Kd4 {[%clk 0:00:09]} 72. Ra6 {[%clk 0:00:12]}  Kd3 {[%clk 0:00:09]} 73. Rd6+ {[%clk 0:00:12]}  Ke3 {[%clk 0:00:09]} 74. Kg8 {[%clk 0:00:12]}  Rh5 {[%clk 0:00:08]} 75. Re6 {[%clk 0:00:12]}  Rg5+ {[%clk 0:00:08]} 76. Kf8 {[%clk 0:00:09]}  Rh5 {[%clk 0:00:08]} 77. Kg7 {[%clk 0:00:09]}  Rh1 {[%clk 0:00:08]} 78. Kg8 {[%clk 0:00:06]}  Kd4 {[%clk 0:00:07]} 79. Kg7 {[%clk 0:00:06]}  Kd5 {[%clk 0:00:07]} 80. Re8 {[%clk 0:00:06]}  Kd4 {[%clk 0:00:07]} 81. Rd8+ {[%clk 0:00:07]}  Ke3 {[%clk 0:00:08]} 82. Rb8 {[%clk 0:00:07]}  Kf4 {[%clk 0:00:08]} 83. Rb2 {[%clk 0:00:07]}  Ke3 {[%clk 0:00:08]} 84. Rb3+ {[%clk 0:00:07]}  Kf4 {[%clk 0:00:08]} 85. Rb6 {[%clk 0:00:07]}  Ke3 {[%clk 0:00:08]} 86. Re6 {[%clk 0:00:07]}  Kf4 {[%clk 0:00:08]} 87. Rxe4+ {[%clk 0:00:07]}  Kxe4 {[%clk 0:00:08]} 88. h7 {[%clk 0:00:08]}  Rxh7+ {[%clk 0:00:08]} 89. Kxh7 {[%clk 0:00:08]} 1/2-1/2


[Site "https://www.chess.com"]

[Event "Titled Tuesday Blitz August 09 Early 2022"]
[White "Janaszak, Dawid"]
[Black "Rustemov, Alexander"]
[WhiteFideId "1119206"]
[BlackFideId "4119002"]
[WhiteElo "2165"]
[BlackElo "2789"]
[Result "1/2-1/2"]
[Round "02"]
[TimeControl "180+1"]
[Date "2022.08.09"]
[WhiteClock "0:01:00"]
[BlackClock "0:01:06"]

1. e4 {[%clk 0:03:00]}  e6 {[%clk 0:02:59]} 2. b3 {[%clk 0:03:01]}  d5 {[%clk 0:02:58]} 3. Bb2 {[%clk 0:03:01]}  Nf6 {[%clk 0:02:57]} 4. d3 {[%clk 0:03:01]}  dxe4 {[%clk 0:02:56]} 5. Nd2 {[%clk 0:03:01]}  exd3 {[%clk 0:02:54]} 6. Bxd3 {[%clk 0:03:01]}  Nbd7 {[%clk 0:02:45]} 7. Qe2 {[%clk 0:02:35]}  Nc5 {[%clk 0:02:38]} 8. Bc4 {[%clk 0:02:33]}  c6 {[%clk 0:02:23]} 9. O-O-O {[%clk 0:02:29]}  Qa5 {[%clk 0:02:13]} 10. a3 {[%clk 0:02:21]}  b5 {[%clk 0:01:55]} 11. b4 {[%clk 0:02:18]}  Qc7 {[%clk 0:01:54]} 12. bxc5 {[%clk 0:01:55]}  bxc4 {[%clk 0:01:54]} 13. Qxc4 {[%clk 0:01:49]}  Be7 {[%clk 0:01:48]} 14. Ngf3 {[%clk 0:01:49]}  O-O {[%clk 0:01:47]} 15. Ne5 {[%clk 0:01:36]}  Rb8 {[%clk 0:01:45]} 16. Nb3 {[%clk 0:01:34]}  Nd5 {[%clk 0:01:36]} 17. Rhe1 {[%clk 0:01:27]}  f6 {[%clk 0:01:36]} 18. Nd3 {[%clk 0:01:25]}  Kh8 {[%clk 0:01:14]} 19. g4 {[%clk 0:01:15]}  e5 {[%clk 0:01:13]} 20. g5 {[%clk 0:01:10]}  Be6 {[%clk 0:01:11]} 21. gxf6 {[%clk 0:01:07]}  gxf6 {[%clk 0:01:11]} 22. Rxe5 {[%clk 0:01:00]}  Bf7 {[%clk 0:01:06]} 1/2-1/2


[Site "https://www.chess.com"]

[Event "Titled Tuesday Blitz August 09 Early 2022"]
[White "Karas, Marek"]
[Black "Lebedev, Artem S."]
[WhiteFideId "14928558"]
[BlackFideId "34272747"]
[WhiteElo "2272"]
[BlackElo "1699"]
[Result "1-0"]
[Round "02"]
[TimeControl "180+1"]
[Date "2022.08.09"]
[WhiteClock "0:01:32"]
[BlackClock "0:00:21"]

1. d4 {[%clk 0:02:59]}  d5 {[%clk 0:02:59]} 2. Nf3 {[%clk 0:03:00]}  Nf6 {[%clk 0:02:59]} 3. Bf4 {[%clk 0:03:01]}  c5 {[%clk 0:02:58]} 4. e3 {[%clk 0:03:01]}  Nc6 {[%clk 0:02:58]} 5. Nbd2 {[%clk 0:03:01]}  e6 {[%clk 0:02:51]} 6. c3 {[%clk 0:03:01]}  Bd6 {[%clk 0:02:42]} 7. Bg3 {[%clk 0:03:00]}  Bxg3 {[%clk 0:02:36]} 8. hxg3 {[%clk 0:03:01]}  Qd6 {[%clk 0:02:34]} 9. Bd3 {[%clk 0:02:58]}  e5 {[%clk 0:02:21]} 10. dxc5 {[%clk 0:02:57]}  Qxc5 {[%clk 0:02:19]} 11. e4 {[%clk 0:02:58]}  Be6 {[%clk 0:02:11]} 12. Qe2 {[%clk 0:02:56]}  O-O-O {[%clk 0:02:06]} 13. exd5 {[%clk 0:02:54]}  Bxd5 {[%clk 0:02:01]} 14. Ne4 {[%clk 0:02:53]}  Bxe4 {[%clk 0:01:58]} 15. Bxe4 {[%clk 0:02:43]}  Nxe4 {[%clk 0:01:44]} 16. Qxe4 {[%clk 0:02:44]}  Kb8 {[%clk 0:01:45]} 17. O-O {[%clk 0:02:37]}  h5 {[%clk 0:01:44]} 18. Rfd1 {[%clk 0:02:25]}  f6 {[%clk 0:01:42]} 19. Qg6 {[%clk 0:02:13]}  Rxd1+ {[%clk 0:01:27]} 20. Rxd1 {[%clk 0:02:12]}  Qe7 {[%clk 0:01:26]} 21. Nh4 {[%clk 0:02:10]}  a6 {[%clk 0:01:12]} 22. Qe4 {[%clk 0:02:06]}  Rd8 {[%clk 0:01:10]} 23. Qe2 {[%clk 0:02:02]}  Rxd1+ {[%clk 0:00:53]} 24. Qxd1 {[%clk 0:02:03]}  Qe8 {[%clk 0:00:53]} 25. Qd6+ {[%clk 0:01:58]}  Ka8 {[%clk 0:00:53]} 26. Nf5 {[%clk 0:01:58]}  g6 {[%clk 0:00:52]} 27. Ne3 {[%clk 0:01:57]}  Qd8 {[%clk 0:00:52]} 28. Qxd8+ {[%clk 0:01:50]}  Nxd8 {[%clk 0:00:51]} 29. Nd5 {[%clk 0:01:51]}  f5 {[%clk 0:00:48]} 30. Ne7 {[%clk 0:01:51]}  Ne6 {[%clk 0:00:42]} 31. Nxg6 {[%clk 0:01:48]}  e4 {[%clk 0:00:39]} 32. Nf4 {[%clk 0:01:47]}  Nc5 {[%clk 0:00:35]} 33. Nxh5 {[%clk 0:01:46]}  Nd3 {[%clk 0:00:35]} 34. Ng7 {[%clk 0:01:42]}  Nxb2 {[%clk 0:00:32]} 35. Nxf5 {[%clk 0:01:42]}  Nd1 {[%clk 0:00:31]} 36. g4 {[%clk 0:01:39]}  Nxc3 {[%clk 0:00:31]} 37. g5 {[%clk 0:01:39]}  Nd5 {[%clk 0:00:30]} 38. g6 {[%clk 0:01:37]}  Nf6 {[%clk 0:00:30]} 39. Ne7 {[%clk 0:01:37]}  Nh5 {[%clk 0:00:28]} 40. Nf5 {[%clk 0:01:33]}  Nf6 {[%clk 0:00:26]} 41. g7 {[%clk 0:01:33]}  Ng8 {[%clk 0:00:26]} 42. Kf1 {[%clk 0:01:33]}  b5 {[%clk 0:00:27]} 43. Ke2 {[%clk 0:01:33]}  a5 {[%clk 0:00:25]} 44. Ke3 {[%clk 0:01:33]}  b4 {[%clk 0:00:23]} 45. Kxe4 {[%clk 0:01:34]}  a4 {[%clk 0:00:22]} 46. Kd4 {[%clk 0:01:31]}  b3 {[%clk 0:00:19]} 47. axb3 {[%clk 0:01:32]}  axb3 {[%clk 0:00:19]} 48. Kc3 {[%clk 0:01:32]}  Kb7 {[%clk 0:00:20]} 49. Kxb3 {[%clk 0:01:31]}  Kc6 {[%clk 0:00:21]} 50. Kc4 {[%clk 0:01:31]}  Kd7 {[%clk 0:00:21]} 51. Kd5 {[%clk 0:01:32]}  Ke8 {[%clk 0:00:21]} 52. Ke6 {[%clk 0:01:32]} 1-0


[Site "https://www.chess.com"]

[Event "Titled Tuesday Blitz August 09 Early 2022"]
[White "Khabinets, Ivan"]
[Black "Kamsky, Gata"]
[WhiteFideId "14115980"]
[BlackFideId "2000024"]
[WhiteElo "2114"]
[BlackElo "2666"]
[Result "1/2-1/2"]
[Round "02"]
[TimeControl "180+1"]
[Date "2022.08.09"]
[WhiteClock "0:00:13"]
[BlackClock "0:00:07"]

1. e4 {[%clk 0:02:59]}  e5 {[%clk 0:02:55]} 2. Nf3 {[%clk 0:02:59]}  Nc6 {[%clk 0:02:55]} 3. Bb5 {[%clk 0:02:59]}  a6 {[%clk 0:02:49]} 4. Ba4 {[%clk 0:03:00]}  Nf6 {[%clk 0:02:49]} 5. Nc3 {[%clk 0:03:00]}  b5 {[%clk 0:02:46]} 6. Bb3 {[%clk 0:03:00]}  Be7 {[%clk 0:02:44]} 7. O-O {[%clk 0:02:57]}  d6 {[%clk 0:02:41]} 8. d3 {[%clk 0:02:56]}  Na5 {[%clk 0:02:39]} 9. Nd5 {[%clk 0:02:44]}  Nxb3 {[%clk 0:02:38]} 10. Nxf6+ {[%clk 0:02:43]}  Bxf6 {[%clk 0:02:37]} 11. axb3 {[%clk 0:02:44]}  O-O {[%clk 0:02:37]} 12. Be3 {[%clk 0:02:41]}  Bb7 {[%clk 0:02:35]} 13. Nd2 {[%clk 0:02:40]}  Be7 {[%clk 0:02:31]} 14. f4 {[%clk 0:02:40]}  exf4 {[%clk 0:02:28]} 15. Bxf4 {[%clk 0:02:40]}  f5 {[%clk 0:02:27]} 16. Qe2 {[%clk 0:02:34]}  Qd7 {[%clk 0:02:22]} 17. Rae1 {[%clk 0:02:32]}  Rae8 {[%clk 0:02:21]} 18. e5 {[%clk 0:01:58]}  g5 {[%clk 0:02:06]} 19. e6 {[%clk 0:01:25]}  Qc6 {[%clk 0:02:05]} 20. Be3 {[%clk 0:01:21]}  f4 {[%clk 0:01:51]} 21. Bd4 {[%clk 0:01:18]}  Qd5 {[%clk 0:01:50]} 22. Qe4 {[%clk 0:01:11]}  c5 {[%clk 0:01:44]} 23. Bf2 {[%clk 0:01:01]}  Bf6 {[%clk 0:01:15]} 24. c4 {[%clk 0:00:51]}  Qxe4 {[%clk 0:01:12]} 25. Nxe4 {[%clk 0:00:52]}  Rxe6 {[%clk 0:00:55]} 26. Nxf6+ {[%clk 0:00:49]}  Rfxf6 {[%clk 0:00:54]} 27. Rxe6 {[%clk 0:00:49]}  Rxe6 {[%clk 0:00:53]} 28. Re1 {[%clk 0:00:50]}  Kf7 {[%clk 0:00:45]} 29. g3 {[%clk 0:00:44]}  Rf6 {[%clk 0:00:24]} 30. Re2 {[%clk 0:00:36]}  Bc8 {[%clk 0:00:22]} 31. Re1 {[%clk 0:00:35]}  Bh3 {[%clk 0:00:21]} 32. Ra1 {[%clk 0:00:33]}  Re6 {[%clk 0:00:20]} 33. Re1 {[%clk 0:00:32]}  f3 {[%clk 0:00:17]} 34. Rxe6 {[%clk 0:00:30]}  Kxe6 {[%clk 0:00:17]} 35. Be3 {[%clk 0:00:30]}  h6 {[%clk 0:00:16]} 36. Kf2 {[%clk 0:00:30]}  Bf5 {[%clk 0:00:15]} 37. d4 {[%clk 0:00:28]}  cxd4 {[%clk 0:00:15]} 38. Bxd4 {[%clk 0:00:29]}  Be4 {[%clk 0:00:15]} 39. Ke3 {[%clk 0:00:26]}  Kf5 {[%clk 0:00:15]} 40. g4+ {[%clk 0:00:23]}  Kxg4 {[%clk 0:00:15]} 41. Kxe4 {[%clk 0:00:24]}  h5 {[%clk 0:00:11]} 42. Kd5 {[%clk 0:00:14]}  Kh3 {[%clk 0:00:10]} 43. Kxd6 {[%clk 0:00:15]}  g4 {[%clk 0:00:08]} 44. c5 {[%clk 0:00:15]}  Kxh2 {[%clk 0:00:08]} 45. c6 {[%clk 0:00:15]}  g3 {[%clk 0:00:08]} 46. c7 {[%clk 0:00:16]}  f2 {[%clk 0:00:09]} 47. c8=Q {[%clk 0:00:16]}  f1=Q {[%clk 0:00:09]} 48. Qe8 {[%clk 0:00:13]}  Qd3 {[%clk 0:00:08]} 49. Qxh5+ {[%clk 0:00:13]}  Kg2 {[%clk 0:00:09]} 50. Qd5+ {[%clk 0:00:13]}  Kh3 {[%clk 0:00:08]} 51. Qh1+ {[%clk 0:00:12]}  Kg4 {[%clk 0:00:07]} 52. Qd5 {[%clk 0:00:12]}  Kh3 {[%clk 0:00:07]} 53. Qh5+ {[%clk 0:00:12]}  Kg2 {[%clk 0:00:06]} 54. Qd5+ {[%clk 0:00:13]}  Kh3 {[%clk 0:00:07]} 1/2-1/2


[Site "https://www.chess.com"]

[Event "Titled Tuesday Blitz August 09 Early 2022"]
[White "Khripachenko, Alexander"]
[Black "Demchenko, Anton"]
[WhiteFideId "54184975"]
[BlackFideId "4160258"]
[WhiteElo "2233"]
[BlackElo "2539"]
[Result "1-0"]
[Round "02"]
[TimeControl "180+1"]
[Date "2022.08.09"]
[WhiteClock "0:00:13"]
[BlackClock "0:00:18"]

1. e4 {[%clk 0:03:00]}  e5 {[%clk 0:02:59]} 2. Nf3 {[%clk 0:03:00]}  Nc6 {[%clk 0:02:59]} 3. Bc4 {[%clk 0:03:01]}  Nf6 {[%clk 0:02:59]} 4. d3 {[%clk 0:03:01]}  h6 {[%clk 0:02:58]} 5. a4 {[%clk 0:03:00]}  d6 {[%clk 0:02:58]} 6. Nc3 {[%clk 0:03:00]}  g6 {[%clk 0:02:58]} 7. h3 {[%clk 0:02:57]}  Bg7 {[%clk 0:02:58]} 8. Be3 {[%clk 0:02:57]}  Be6 {[%clk 0:02:57]} 9. Nd5 {[%clk 0:02:56]}  Bxd5 {[%clk 0:02:56]} 10. exd5 {[%clk 0:02:57]}  Ne7 {[%clk 0:02:57]} 11. d4 {[%clk 0:02:53]}  e4 {[%clk 0:02:53]} 12. Nd2 {[%clk 0:02:53]}  Nfxd5 {[%clk 0:02:44]} 13. Bxd5 {[%clk 0:02:38]}  Nxd5 {[%clk 0:02:44]} 14. Nxe4 {[%clk 0:02:38]}  f5 {[%clk 0:01:59]} 15. Nc3 {[%clk 0:02:32]}  Nxe3 {[%clk 0:01:58]} 16. fxe3 {[%clk 0:02:30]}  Qh4+ {[%clk 0:01:59]} 17. Kf1 {[%clk 0:02:26]}  O-O-O {[%clk 0:01:51]} 18. Qf3 {[%clk 0:02:23]}  f4 {[%clk 0:01:48]} 19. exf4 {[%clk 0:02:00]}  Bxd4 {[%clk 0:01:31]} 20. g3 {[%clk 0:01:59]}  Qf6 {[%clk 0:01:27]} 21. Nd5 {[%clk 0:01:59]}  Qf7 {[%clk 0:01:22]} 22. c3 {[%clk 0:01:58]}  Bg7 {[%clk 0:01:17]} 23. Kg2 {[%clk 0:01:58]}  c6 {[%clk 0:01:13]} 24. Nb4 {[%clk 0:01:58]}  Rhe8 {[%clk 0:01:10]} 25. Rhe1 {[%clk 0:01:56]}  Qb3 {[%clk 0:01:03]} 26. Nxc6 {[%clk 0:01:21]}  Qxb2+ {[%clk 0:00:24]} 27. Kh1 {[%clk 0:01:18]}  Qxc3 {[%clk 0:00:25]} 28. Qxc3 {[%clk 0:00:54]}  Bxc3 {[%clk 0:00:24]} 29. Rxe8 {[%clk 0:00:55]}  Rxe8 {[%clk 0:00:25]} 30. Nxa7+ {[%clk 0:00:55]}  Kb8 {[%clk 0:00:25]} 31. Rc1 {[%clk 0:00:54]}  Bb2 {[%clk 0:00:16]} 32. Rc2 {[%clk 0:00:52]}  Kxa7 {[%clk 0:00:14]} 33. Rxb2 {[%clk 0:00:52]}  Re4 {[%clk 0:00:14]} 34. Rd2 {[%clk 0:00:52]}  Rxa4 {[%clk 0:00:13]} 35. Rxd6 {[%clk 0:00:52]}  Ra6 {[%clk 0:00:14]} 36. Rd3 {[%clk 0:00:50]}  b5 {[%clk 0:00:14]} 37. g4 {[%clk 0:00:51]}  b4 {[%clk 0:00:14]} 38. f5 {[%clk 0:00:50]}  gxf5 {[%clk 0:00:14]} 39. gxf5 {[%clk 0:00:51]}  Rb6 {[%clk 0:00:12]} 40. Rb3 {[%clk 0:00:19]}  Ka6 {[%clk 0:00:12]} 41. f6 {[%clk 0:00:17]}  Kb5 {[%clk 0:00:12]} 42. Rf3 {[%clk 0:00:14]}  Rb8 {[%clk 0:00:12]} 43. f7 {[%clk 0:00:15]}  Rf8 {[%clk 0:00:13]} 44. Kg2 {[%clk 0:00:14]}  Ka4 {[%clk 0:00:13]} 45. Kg3 {[%clk 0:00:08]}  b3 {[%clk 0:00:14]} 46. Rf1 {[%clk 0:00:09]}  b2 {[%clk 0:00:13]} 47. Kg4 {[%clk 0:00:09]}  Rxf7 {[%clk 0:00:13]} 48. Rxf7 {[%clk 0:00:09]}  b1=Q {[%clk 0:00:13]} 49. Ra7+ {[%clk 0:00:09]}  Kb3 {[%clk 0:00:14]} 50. Rb7+ {[%clk 0:00:10]}  Kc2 {[%clk 0:00:15]} 51. Rxb1 {[%clk 0:00:11]}  Kxb1 {[%clk 0:00:16]} 52. Kh5 {[%clk 0:00:11]}  Kc2 {[%clk 0:00:16]} 53. Kxh6 {[%clk 0:00:12]}  Kd3 {[%clk 0:00:17]} 54. Kg7 {[%clk 0:00:13]}  Ke4 {[%clk 0:00:18]} 55. h4 {[%clk 0:00:13]} 1-0


[Site "https://www.chess.com"]

[Event "Titled Tuesday Blitz August 09 Early 2022"]
[White "Kilic, Eray"]
[Black "Kazancev, Valerij M"]
[WhiteFideId "44517173"]
[BlackFideId "4179609"]
[WhiteElo "1776"]
[BlackElo "2551"]
[Result "1-0"]
[Round "02"]
[TimeControl "180+1"]
[Date "2022.08.09"]
[WhiteClock "0:00:42"]
[BlackClock "0:00:35"]

1. e4 {[%clk 0:03:00]}  c5 {[%clk 0:02:59]} 2. Nf3 {[%clk 0:03:01]}  d6 {[%clk 0:02:59]} 3. d4 {[%clk 0:03:00]}  cxd4 {[%clk 0:03:00]} 4. Nxd4 {[%clk 0:03:01]}  Nf6 {[%clk 0:03:01]} 5. Nc3 {[%clk 0:03:01]}  a6 {[%clk 0:03:01]} 6. Be3 {[%clk 0:03:02]}  b5 {[%clk 0:03:00]} 7. Bd3 {[%clk 0:02:53]}  Bb7 {[%clk 0:03:00]} 8. a3 {[%clk 0:02:53]}  Nbd7 {[%clk 0:03:00]} 9. Nb3 {[%clk 0:02:52]}  Rc8 {[%clk 0:02:59]} 10. O-O {[%clk 0:02:52]}  e6 {[%clk 0:02:58]} 11. f4 {[%clk 0:02:52]}  Rxc3 {[%clk 0:02:56]} 12. bxc3 {[%clk 0:02:51]}  Nxe4 {[%clk 0:02:55]} 13. Qe1 {[%clk 0:02:51]}  Be7 {[%clk 0:02:37]} 14. Rd1 {[%clk 0:02:44]}  Qa8 {[%clk 0:02:18]} 15. Na5 {[%clk 0:02:41]}  Bd5 {[%clk 0:02:18]} 16. c4 {[%clk 0:02:29]}  bxc4 {[%clk 0:02:17]} 17. Bxc4 {[%clk 0:02:28]}  Bxc4 {[%clk 0:02:17]} 18. Nxc4 {[%clk 0:02:29]}  d5 {[%clk 0:02:18]} 19. Ne5 {[%clk 0:02:28]}  Nxe5 {[%clk 0:02:03]} 20. fxe5 {[%clk 0:02:28]}  O-O {[%clk 0:02:04]} 21. a4 {[%clk 0:02:07]}  Qc6 {[%clk 0:02:03]} 22. a5 {[%clk 0:01:48]}  Qxc2 {[%clk 0:01:48]} 23. Rc1 {[%clk 0:01:48]}  Qb2 {[%clk 0:01:39]} 24. Rc7 {[%clk 0:01:27]}  Bb4 {[%clk 0:01:38]} 25. Rb7 {[%clk 0:00:57]}  Bxe1 {[%clk 0:01:37]} 26. Rxb2 {[%clk 0:00:57]}  Bxa5 {[%clk 0:01:38]} 27. Ra2 {[%clk 0:00:57]}  Bc3 {[%clk 0:01:37]} 28. Rxa6 {[%clk 0:00:57]}  Bxe5 {[%clk 0:01:37]} 29. Ra7 {[%clk 0:00:57]}  h6 {[%clk 0:01:29]} 30. Rd7 {[%clk 0:00:56]}  g5 {[%clk 0:01:19]} 31. g3 {[%clk 0:00:53]}  Kg7 {[%clk 0:01:18]} 32. Rb1 {[%clk 0:00:50]}  Kg6 {[%clk 0:01:05]} 33. Rbb7 {[%clk 0:00:48]}  h5 {[%clk 0:00:55]} 34. Kg2 {[%clk 0:00:47]}  g4 {[%clk 0:00:53]} 35. Ra7 {[%clk 0:00:44]}  Nd6 {[%clk 0:00:35]} 36. Bc5 {[%clk 0:00:42]} 1-0


[Site "https://www.chess.com"]

[Event "Titled Tuesday Blitz August 09 Early 2022"]
[White "Kopjonkin, Kirill"]
[Black "Garriga Cazorla, Pere"]
[WhiteFideId "24140090"]
[BlackFideId "32011601"]
[WhiteElo "2265"]
[BlackElo "2365"]
[Result "0-1"]
[Round "02"]
[TimeControl "180+1"]
[Date "2022.08.09"]
[WhiteClock "0:01:46"]
[BlackClock "0:02:38"]

1. e4 {[%clk 0:03:00]}  c5 {[%clk 0:02:55]} 2. Nf3 {[%clk 0:03:00]}  d6 {[%clk 0:02:51]} 3. d4 {[%clk 0:03:01]}  cxd4 {[%clk 0:02:52]} 4. Nxd4 {[%clk 0:03:02]}  Nf6 {[%clk 0:02:52]} 5. Nc3 {[%clk 0:03:02]}  a6 {[%clk 0:02:53]} 6. f3 {[%clk 0:03:02]}  e5 {[%clk 0:02:52]} 7. Nb3 {[%clk 0:03:01]}  Be6 {[%clk 0:02:53]} 8. Be3 {[%clk 0:03:01]}  h5 {[%clk 0:02:54]} 9. Nd5 {[%clk 0:03:01]}  Bxd5 {[%clk 0:02:53]} 10. exd5 {[%clk 0:03:02]}  Nbd7 {[%clk 0:02:54]} 11. Qd2 {[%clk 0:03:03]}  g6 {[%clk 0:02:54]} 12. Na5 {[%clk 0:03:02]}  Rb8 {[%clk 0:02:54]} 13. Be2 {[%clk 0:02:49]}  Bg7 {[%clk 0:02:54]} 14. O-O {[%clk 0:02:49]}  O-O {[%clk 0:02:54]} 15. c4 {[%clk 0:02:48]}  e4 {[%clk 0:02:55]} 16. b4 {[%clk 0:02:36]}  exf3 {[%clk 0:02:54]} 17. gxf3 {[%clk 0:02:37]}  Re8 {[%clk 0:02:53]} 18. Rac1 {[%clk 0:02:32]}  h4 {[%clk 0:02:51]} 19. Rf2 {[%clk 0:02:09]}  Nh5 {[%clk 0:02:47]} 20. Ba7 {[%clk 0:01:49]}  Ra8 {[%clk 0:02:44]} 21. Bd4 {[%clk 0:01:48]}  Bxd4 {[%clk 0:02:43]} 22. Qxd4 {[%clk 0:01:47]}  Qg5+ {[%clk 0:02:43]} 23. Kh1 {[%clk 0:01:45]}  Qxc1+ {[%clk 0:02:43]} 24. Rf1 {[%clk 0:01:46]}  Qf4 {[%clk 0:02:38]} 0-1


[Site "https://www.chess.com"]

[Event "Titled Tuesday Blitz August 09 Early 2022"]
[White "Korchmar, Vasiliy"]
[Black "Abdrlauf, Elham"]
[WhiteFideId "24131750"]
[BlackFideId "1533533"]
[WhiteElo "2370"]
[BlackElo "2430"]
[Result "0-1"]
[Round "02"]
[TimeControl "180+1"]
[Date "2022.08.09"]
[WhiteClock "0:00:38"]
[BlackClock "0:01:27"]

1. e4 {[%clk 0:03:00]}  c6 {[%clk 0:02:59]} 2. d4 {[%clk 0:03:00]}  d5 {[%clk 0:03:00]} 3. e5 {[%clk 0:03:01]}  c5 {[%clk 0:03:01]} 4. dxc5 {[%clk 0:03:00]}  e6 {[%clk 0:03:01]} 5. Be3 {[%clk 0:02:59]}  Nd7 {[%clk 0:03:02]} 6. Bb5 {[%clk 0:02:59]}  Ne7 {[%clk 0:03:02]} 7. c3 {[%clk 0:02:53]}  Nc6 {[%clk 0:03:00]} 8. b4 {[%clk 0:02:41]}  Ndxe5 {[%clk 0:02:55]} 9. Nf3 {[%clk 0:02:39]}  Nxf3+ {[%clk 0:02:52]} 10. Qxf3 {[%clk 0:02:40]}  Be7 {[%clk 0:02:52]} 11. O-O {[%clk 0:02:35]}  O-O {[%clk 0:02:53]} 12. Nd2 {[%clk 0:02:34]}  e5 {[%clk 0:02:52]} 13. Rad1 {[%clk 0:02:18]}  Be6 {[%clk 0:02:52]} 14. Nc4 {[%clk 0:02:08]}  Qc7 {[%clk 0:02:32]} 15. Bxc6 {[%clk 0:02:06]}  bxc6 {[%clk 0:02:28]} 16. Na5 {[%clk 0:02:06]}  f5 {[%clk 0:02:21]} 17. Rfe1 {[%clk 0:02:03]}  f4 {[%clk 0:02:16]} 18. Bd4 {[%clk 0:01:40]}  e4 {[%clk 0:02:10]} 19. Qe2 {[%clk 0:01:28]}  Qd7 {[%clk 0:01:48]} 20. Qa6 {[%clk 0:01:26]}  Rac8 {[%clk 0:01:48]} 21. b5 {[%clk 0:01:18]}  Bh3 {[%clk 0:01:36]} 22. gxh3 {[%clk 0:00:50]}  Qxh3 {[%clk 0:01:35]} 23. bxc6 {[%clk 0:00:50]}  Rf5 {[%clk 0:01:29]} 24. Qxc8+ {[%clk 0:00:50]}  Kf7 {[%clk 0:01:29]} 25. Qe6+ {[%clk 0:00:38]}  Kxe6 {[%clk 0:01:27]} 0-1


[Site "https://www.chess.com"]